Cogmind - Beta 15 @@@ ROGUE MODE // 2025.08.22 @ 22:48:57 Player: Triffids Result: Self-destructed Performance ------------- Evolutions (3) 1500 Regions Visited (8) 1600 Robots Destroyed (27) 135 Value Destroyed (656) 656 Prototype IDs (26) 520 Alien Tech Used (0) 0 Bonus (300) 300 TOTAL SCORE: 4711 Bonus ------- Aligned with FarCom 300 Cogmind --------- Core Integrity 520/700 Matter 300/300 Energy 290/290 System Corruption 0% Temperature Cool (0) Movement Walking (125) Location -7/Lower Caves Parts ------- > --- POWER (1) -------- Improved Deuterium Engine > --- PROPULSION (2) --- Improved Carbon-fiber Leg Improved Titanium Leg > --- UTILITY (8) ------ Improved Heat Sink Advanced Targeting Computer Transmission Jammer Hardened Light Armor Plating > --- WEAPON (2) ------- Improved Spread Laser Improved Spread Laser > --- INVENTORY (5) ---- Armored Huge Wheel Riot Gun Mini Grenade Launcher Mining Laser Peak State ------------ > --- POWER ------------ Nuclear Core > --- PROPULSION ------- Improved Carbon-fiber Leg Improved Carbon-fiber Leg > --- UTILITY ---------- Improved Heat Sink Improved Heat Sink Advanced Targeting Computer Transmission Jammer Improved Utility Shielding Improved Light Armor Plating Improved Medium Armor Plating Supersonic Drone Bay > --- WEAPON ----------- Improved Spread Laser Improved Spread Laser > --- INVENTORY -------- Improved Deuterium Engine Improved Titanium Leg Improved Spread Laser Mini Grenade Launcher Mining Laser [Rating: 53] Favorites ----------- Power Nuclear Core Engine Light Ion Engine Power Core Nuclear Core Propulsion Improved Carbon-fiber Leg Leg Improved Carbon-fiber Leg Utility Improved Heat Sink Device Improved Heat Sink Storage Small Storage Unit Processor Advanced Targeting Computer Protection Improved Medium Armor Plating Weapon Improved Spread Laser Energy Gun Improved Spread Laser Ballistic Gun Light Assault Rifle Launcher Mini Grenade Launcher Special Weapon Mining Laser Build | -11 -10 -10 -10 -9 -8 -7 -7 -7 ------- Run | Yrd Mat Min Exi Min Mat Fac Low Low Slots Evolved 6 | . . . . . 4 2 . . Power . | . . . . . . . . . Propulsion . | . . . . . . . . . Utility 6 | . . . . . 4 2 . . Weapon . | . . . . . . . . . Parts Attached 31 | 7 . . 2 . 14 4 4 . Power 3 | 1 . . . . 1 . 1 . Engine 2 | 1 . . . . . . 1 . Core 1 | . . . . . 1 . . . Reactor . | . . . . . . . . . Propulsion 5 | 2 . . . . 2 . 1 . Treads . | . . . . . . . . . Leg 5 | 2 . . . . 2 . 1 . Wheel . | . . . . . . . . . Hover . | . . . . . . . . . Flight . | . . . . . . . . . Utility 14 | 2 . . 2 . 6 3 1 . Device 6 | 1 . . 2 . 1 2 . . Storage 1 | 1 . . . . . . . . Processor 1 | . . . . . 1 . . . Hackware . | . . . . . . . . . Protection 6 | . . . . . 4 1 1 . Artifact . | . . . . . . . . . Weapon 9 | 2 . . . . 5 1 1 . Energy Gun 5 | 2 . . . . 2 . 1 . Energy Cannon . | . . . . . . . . . Ballistic Gun 1 | . . . . . 1 . . . Ballistic Cannon . | . . . . . . . . . Launcher 2 | . . . . . 1 1 . . Special Weapon 1 | . . . . . 1 . . . Impact Weapon . | . . . . . . . . . Slashing Weapon . | . . . . . . . . . Piercing Weapon . | . . . . . . . . . Special Melee Weapon . | . . . . . . . . . Unidentified Prototypes 1 | . . . . . 1 . . . Parts Lost 9 | . . . . . 1 2 6 . Power 1 | . . . . . . . 1 . Propulsion 1 | . . . . . . . 1 . Utility 7 | . . . . . 1 2 4 . Weapon . | . . . . . . . . . Highest Loss Streak 3 | . . . . . 1 1 3 . To Critical Strikes . | . . . . . . . . . Average Backups 4 | 2 4 5 5 5 4 4 4 4 Power . | 1 1 1 1 1 1 1 . . Propulsion . | . . . . . . . . 1 Utility . | . 1 1 1 1 . . . . Weapon 2 | 1 2 3 3 3 3 3 3 3 Tool/Special . | . . . . . . . . . Unused Backups 5 | . . . . . 3 1 1 . Power 2 | . . . . . 1 1 . . Propulsion 1 | . . . . . . . 1 . Utility 1 | . . . . . 1 . . . Weapon 1 | . . . . . 1 . . . Tool/Special . | . . . . . . . . . Average Slot Usage (%) 90 | . 100 100 100 100 85 86 85 69 Engine 6 | . 14 14 14 14 2 . 1 7 Core 3 | . . . . . 6 7 5 . Leg 19 | . 28 28 28 28 18 15 15 15 Device 19 | . 14 14 16 28 17 19 21 15 Storage 3 | . 14 14 11 . . . . . Processor 3 | . . . . . 2 7 7 7 Protection 11 | . . . . . 19 20 18 7 Energy Gun 19 | . 28 28 28 28 16 14 15 15 Peak Build Rating 53 | 7 7 7 14 14 47 53 53 35 Average Rating 29 | 5 7 7 8 14 37 47 42 35 On Entrance 20 | . 7 7 7 14 14 46 53 35 Naked Turns . | . . . . . . . . . Heaviest Build 35 | 13 13 13 16 9 35 34 31 25 Greatest Support 38 | 20 20 20 20 20 36 36 38 38 Greatest Overweight (x) 1 | 1 . . . . . . . . Average Overweight (x) . | . . . . . . . . . Largest Inventory Capacity 8 | 8 8 8 8 5 5 5 5 5 Average Capacity 5 | 7 8 8 7 5 5 5 5 5 Most Carried 5 | 5 5 5 5 5 5 5 5 5 Average Carried 4 | 2 4 5 5 5 4 4 4 5 Final Capacity 8 | 8 8 8 5 5 5 5 5 5 Final Carried 5 | 4 5 5 5 5 5 5 5 5 Class Distribution -------------------- 100% | Mutant Dominant Class ---------------- Mutant | -10/Materials Mutant | -10/Mines Mutant | -10/Exiles Mutant | -9/Mines Mutant | -8/Materials Mutant | -7/Factory Mutant | -7/Lower Caves Mutant | -7/Lower Caves Resources | -11 -10 -10 -10 -9 -8 -7 -7 -7 ----------- Run | Yrd Mat Min Exi Min Mat Fac Low Low Matter Collected 598 | 270 . . . 20 201 77 30 . Remotely . | . . . . . . . . . Salvage Created 585 | 106 . 27 . . 137 179 136 . Parts 59 | 13 . 4 . . 24 14 4 . Haulers Intercepted . | . . . . . . . . . Recyclers Shooed 1 | 1 . . . . . . . . Parts Field Recycled . | . . . . . . . . . Retrieved Matter . | . . . . . . . . . Parts Self-Destructed 4 | . . . . . . . 4 . Prevented . | . . . . . . . . . Kills | -11 -10 -10 -10 -9 -8 -7 -7 -7 ------- Run | Yrd Mat Min Exi Min Mat Fac Low Low Combat Hostiles Destroyed 20 | . . 2 . . 6 8 4 . Guns 14 | . . 2 . . 2 6 4 . AOE 6 | . . . . . 4 2 . . Classes Destroyed 6 | 1 . 1 . . 2 2 . . Builder 2 | . . . . . 2 . . . Tunneler 5 | 5 . . . . . . . . Swarmer 12 | . . 2 . . 4 6 . . Grunt 6 | . . . . . 2 . 4 . Duelist 1 | . . . . . . 1 . . Sentry 1 | . . . . . . 1 . . Best Kill Streak 5 | 4 . 2 . . 5 4 4 . Combat Bots Only 5 | . . 2 . . 5 4 4 . Max Kills in Single Turn 4 | 1 . 1 . . 4 2 1 . Gunslinging . | . . . . . . . . . Exploded 4 | . . . . . 4 2 . . Melee . | . . . . . . . . . Uniques/NPCs Destroyed . | . . . . . . . . . Combat | -11 -10 -10 -10 -9 -8 -7 -7 -7 -------- Run | Yrd Mat Min Exi Min Mat Fac Low Low Hostile Shots Fired 154 | . . 2 . . 21 56 73 2 Missed 48 | . . 1 . . 2 19 24 2 Hits 106 | . . 1 . . 19 37 49 . Melee 3 | . . . . . . 3 . . Projectile 103 | . . 1 . . 19 34 49 . Critical Strikes 5 | . . . . . 1 1 3 . Actively Blocked 2 | . . . . . . 1 1 . Damage Taken 1660 | . . 6 . . 266 537 851 . Core 207 | . . 6 . . 21 19 161 . Absorbed by Shields . | . . . . . . . . . Redirected to Shielding 220 | . . . . . 48 112 60 . Core Remaining (%) 97 | 100 . . . 97 96 . . . Volleys Fired 59 | 13 . 2 . . 23 13 8 . Largest 2 | 2 . 2 . . 2 2 2 . Hottest 150 | 100 . 100 . . 150 150 150 . Shots Fired 96 | 26 . 4 . . 27 23 16 . Gun 86 | 26 . 4 . . 18 22 16 . Cannon . | . . . . . . . . . Launcher 2 | . . . . . 1 1 . . Special 8 | . . . . . 8 . . . Kinetic 6 | . . . . . 6 . . . Thermal 88 | 26 . 4 . . 20 22 16 . Explosive 2 | . . . . . 1 1 . . Electromagnetic . | . . . . . . . . . Robot Hit Streak 17 | 6 . 1 . . 5 13 17 . Robot Miss Streak 5 | 1 . 1 . . 4 5 3 . Penetration Max . | . . . . . . . . . Secondary Targets 2 | . . . . . . 2 . . Max Gunslinging Chain 1 | . . . . . . 1 . . Shots Hit Robots 71 | 17 . 2 . . 15 22 15 . Core Hits 76 | 5 . 2 . . 18 28 23 . Critical Kills . | . . . . . . . . . Critical Parts Destroyed . | . . . . . . . . . Critical Strikes 3 | 2 . 1 . . . . . . Burn 3 | 2 . 1 . . . . . . Melee Attacks . | . . . . . . . . . Impact . | . . . . . . . . . Slashing . | . . . . . . . . . Piercing . | . . . . . . . . . Sneak Attacks . | . . . . . . . . . Combat Hostiles . | . . . . . . . . . Follow-up Attacks . | . . . . . . . . . Damage Inflicted 1686 | 212 . 25 . . 439 623 387 . Guns 1333 | 212 . 25 . . 256 453 387 . Cannons . | . . . . . . . . . Explosions 351 | . . . . . 181 170 . . Melee . | . . . . . . . . . Ramming 2 | . . . . . 2 . . . Kinetic 33 | . . . . . 33 . . . Thermal 1300 | 212 . 25 . . 223 453 387 . Explosive 351 | . . . . . 181 170 . . Electromagnetic . | . . . . . . . . . Impact . | . . . . . . . . . Slashing . | . . . . . . . . . Piercing . | . . . . . . . . . Highest Corruption . | . . . . . . . . . Average Corruption . | . . . . . . . . . Corruption Purged . | . . . . . . . . . Corruption Blocked . | . . . . . . . . . Overload Shots . | . . . . . . . . . Overflow Damage 36 | . . . . . . 36 . . Projectiles . | . . . . . . . . . Explosions 36 | . . . . . . 36 . . Melee . | . . . . . . . . . Knockbacks . | . . . . . . . . . Impact . | . . . . . . . . . Kinetic . | . . . . . . . . . Secondary . | . . . . . . . . . Self-Inflicted Damage 34 | . . . . . 6 28 . . Shots 2 | . . . . . 1 1 . . Rammed . | . . . . . . . . . Targets Rammed 1 | . . . . . 1 . . . Kicked 1 | . . . . . 1 . . . Crushed . | . . . . . . . . . Highest Temperature 292 | 273 . 40 . . 292 198 50 . Average Temperature 90 | 102 . 20 . . 106 88 29 . Received Heat Transfer 405 | . . . . . 162 24 219 . Siege Activations . | . . . . . . . . . Martial Activations . | . . . . . . . . . Shielding Activations . | . . . . . . . . . Robots Disrupted . | . . . . . . . . . Combat Hostiles . | . . . . . . . . . Robots Corrupted . | . . . . . . . . . Combat Hostiles . | . . . . . . . . . Parts Fried . | . . . . . . . . . Impact Corruptions . | . . . . . . . . . Robots Melted . | . . . . . . . . . Combat Hostiles . | . . . . . . . . . Parts Melted . | . . . . . . . . . Heat Transferred 1810 | 777 . 148 . . 190 375 320 . Parts Sabotaged . | . . . . . . . . . Parts Stolen . | . . . . . . . . . Parts Stripped . | . . . . . . . . . Power Chain Reactions . | . . . . . . . . . Alert | -11 -10 -10 -10 -9 -8 -7 -7 -7 ------- Run | Yrd Mat Min Exi Min Mat Fac Low Low Maximum Alert Level . | . . . . . . . . . Low Security (%) 100 | 100 100 100 . 100 100 100 . . Level 1 . | . . . . . . . . . Level 2 . | . . . . . . . . . Level 3 . | . . . . . . . . . Level 4 . | . . . . . . . . . Level 5 . | . . . . . . . . . High Security . | . . . . . . . . . Max Security . | . . . . . . . . . Peak Influence 131 | 10 12 50 . . 127 131 . . Initial 25 | . . . . . . 25 . . Average 35 | 2 1 27 . . 50 59 . . Influence Increases 557 | 25 12 50 . . 174 191 105 . Destroy 0b10 Robot/C 400 | . . 40 . . 120 160 80 . Destroy 0b10 Robot/NC 35 | 25 . . . . 10 . . . Destroy Leader 60 | . . 10 . . 20 20 10 . Successful Hack 22 | . 12 . . . 10 . . . Destroy Structure 25 | . . . . . 14 11 . . Lose Combat Pursuer 15 | . . . . . . . 15 . Influence Decreases 557 | 25 12 50 . . 117 197 156 . Entered New Map 52 | . . . . . . 32 20 . Time Decay 474 | 25 12 50 . . 107 155 125 . Lost Part 21 | . . . . . 10 10 1 . Lost Ally 10 | . . . . . . . 10 . Squads Dispatched 7 | . . . . . 3 4 . . Investigation . | . . . . . . . . . Extermination . | . . . . . . . . . Reinforcement 4 | . . . . . 3 1 . . Assault . | . . . . . . . . . Garrison 3 | . . . . . . 3 . . Intercept . | . . . . . . . . . Searches Triggered . | . . . . . . . . . Construction Impeded 1 | . . . . . 1 . . . Haulers Reinforced . | . . . . . . . . . Active Scanning Responses . | . . . . . . . . . Cargo Convoy Interrupts . | . . . . . . . . . Stealth | -11 -10 -10 -10 -9 -8 -7 -7 -7 --------- Run | Yrd Mat Min Exi Min Mat Fac Low Low Distress Signals 3 | . . . . . 2 1 . . Communications Jammed . | . . . . . . . . . Distress Signals . | . . . . . . . . . Times Spotted 33 | . . 2 . . 13 10 5 3 Peak Tracking Total 9 | . . 1 . . 9 4 4 3 Tactical Retreats 1 | . . . . . . . 1 . Traps | -11 -10 -10 -10 -9 -8 -7 -7 -7 ------- Run | Yrd Mat Min Exi Min Mat Fac Low Low Traps Triggered 1 | . . . . . . 1 . . Indirectly . | . . . . . . . . . Trap Hack Attempts . | . . . . . . . . . Triggered . | . . . . . . . . . Disarmed . | . . . . . . . . . Reprogrammed . | . . . . . . . . . Reused . | . . . . . . . . . Traps Extracted . | . . . . . . . . . Installed . | . . . . . . . . . Triggered . | . . . . . . . . . Machines | -11 -10 -10 -10 -9 -8 -7 -7 -7 ---------- Run | Yrd Mat Min Exi Min Mat Fac Low Low Machines Disabled . | . . . . . . . . . Max in Single Turn . | . . . . . . . . . Machines Repaired . | . . . . . . . . . Machines Dismantled . | . . . . . . . . . Machines Sabotaged . | . . . . . . . . . Overloaded Fab Kills . | . . . . . . . . . Hacking | -11 -10 -10 -10 -9 -8 -7 -7 -7 --------- Run | Yrd Mat Min Exi Min Mat Fac Low Low Machines Accessed 5 | . 1 . 1 . 2 1 . . Terminals 4 | . 1 . . . 2 1 . . Fabricators . | . . . . . . . . . Repair Stations . | . . . . . . . . . Recycling Units . | . . . . . . . . . Scanalyzers . | . . . . . . . . . Garrison Access . | . . . . . . . . . Total Hacks 22 | . 9 . 1 . 8 4 . . Successful 15 | . 7 . 1 . 5 2 . . Failed 7 | . 2 . . . 3 2 . . Catastrophic . | . . . . . . . . . Database Lockouts . | . . . . . . . . . Manual 16 | . 7 . 1 . 5 3 . . Terminals 21 | . 9 . . . 8 4 . . Fabricators . | . . . . . . . . . Repair Stations . | . . . . . . . . . Recycling Units . | . . . . . . . . . Scanalyzers . | . . . . . . . . . Garrison Access . | . . . . . . . . . Terminal Hacks 10 | . 4 . 1 . 3 2 . . Robot Analysis 3 | . 1 . . . 1 1 . . Prototype ID Bank 1 | . . . . . 1 . . . Terminal Index 1 | . 1 . . . . . . . Locate Traps 3 | . 1 . . . 1 1 . . Patrol Status 1 | . 1 . . . . . . . Proto ID Catalog 1 | . . . 1 . . . . . Fabricator Hacks . | . . . . . . . . . Repair Station Hacks . | . . . . . . . . . Recycling Unit Hacks . | . . . . . . . . . Scanalyzer . | . . . . . . . . . Garrison Access Hacks . | . . . . . . . . . Unauthorized Hacks 5 | . 3 . . . 2 . . . Terminals 5 | . 3 . . . 2 . . . Track 1 | . 1 . . . . . . . Botnet 3 | . 1 . . . 2 . . . Operators 1 | . 1 . . . . . . . Fabricators . | . . . . . . . . . Repair Stations . | . . . . . . . . . Recycling Units . | . . . . . . . . . Scanalyzers . | . . . . . . . . . Garrison Access . | . . . . . . . . . Data Cores Recovered . | . . . . . . . . . Used . | . . . . . . . . . Hacking Detections 3 | . 1 . . . 2 . . . Full Trace Events . | . . . . . . . . . Feedback Events . | . . . . . . . . . Feedback Blocked . | . . . . . . . . . Robot Schematics Acquired . | . . . . . . . . . Robots Built . | . . . . . . . . . Authchips . | . . . . . . . . . Time . | . . . . . . . . . Total Robot Build Rating . | . . . . . . . . . Part Schematics Acquired . | . . . . . . . . . Parts Built . | . . . . . . . . . Authchips . | . . . . . . . . . Time . | . . . . . . . . . Total Part Build Rating . | . . . . . . . . . Parts Repaired . | . . . . . . . . . Time . | . . . . . . . . . Parts Recycled . | . . . . . . . . . Recycled Matter . | . . . . . . . . . Retrieved Matter . | . . . . . . . . . Retrieved Components . | . . . . . . . . . Parts Scanalyzed . | . . . . . . . . . Part Schematics Acquired . | . . . . . . . . . Parts Damaged . | . . . . . . . . . Bothacking | -11 -10 -10 -10 -9 -8 -7 -7 -7 ------------ Run | Yrd Mat Min Exi Min Mat Fac Low Low Used RIF Installer . | . . . . . . . . . Robots Hacked . | . . . . . . . . . Non-combat . | . . . . . . . . . Combat . | . . . . . . . . . Robot Hacks Applied . | . . . . . . . . . Relay Couplers Released . | . . . . . . . . . Fabnet Peak Effective % . | . . . . . . . . . Robots Rewired . | . . . . . . . . . Allies Hacked . | . . . . . . . . . Hacks Repelled . | . . . . . . . . . Allies | -11 -10 -10 -10 -9 -8 -7 -7 -7 -------- Run | Yrd Mat Min Exi Min Mat Fac Low Low Total Allies . | . . . . . . . . . Largest Group . | . . . . . . . . . Highest-Rated Group . | . . . . . . . . . Highest-Rated Ally . | . . . . . . . . . Total Orders 8 | . . . 2 2 2 1 1 . EXPLORE 6 | . . . 1 1 2 1 1 . RETURN 2 | . . . 1 1 . . . . Ally Attacks . | . . . . . . . . . Total Damage . | . . . . . . . . . Kills . | . . . . . . . . . Allies Corrupted . | . . . . . . . . . Allies Melted . | . . . . . . . . . Intel | -11 -10 -10 -10 -9 -8 -7 -7 -7 ------- Run | Yrd Mat Min Exi Min Mat Fac Low Low Active Infowar (turns) 2203 | 8 107 105 616 145 196 173 756 97 Seismic 1173 | 8 107 105 612 145 196 . . . Cloaking 11 | . . . 11 . . . . . Jamming 1026 | . . . . . . 173 756 97 Robot Analysis Total 3 | . 1 . . . 1 1 . . Derelict Logs Recovered 3 | . . 1 . 1 . . 1 . Drone Launches 6 | . . . 1 1 2 1 1 . Drone Recoveries 5 | . . . 1 1 2 1 . . Exploration | -11 -10 -10 -10 -9 -8 -7 -7 -7 ------------- Run | Yrd Mat Min Exi Min Mat Fac Low Low Turns Passed 2936 | 132 107 105 616 145 376 338 1018 99 Spaces Moved 2136 | 68 85 83 509 115 170 241 786 79 Core 16 | 16 . . . . . . . . Treads . | . . . . . . . . . Legs 2120 | 52 85 83 509 115 170 241 786 79 Wheels . | . . . . . . . . . Hover . | . . . . . . . . . Flight . | . . . . . . . . . Fastest Speed 50 | 50 120 120 120 120 120 120 120 125 Average Speed 121 | 110 120 120 120 120 120 120 124 125 Slowest Speed 125 | 120 120 120 120 120 120 120 125 125 Overloaded Moves . | . . . . . . . . . Propulsion Burnouts . | . . . . . . . . . Robots Hopped . | . . . . . . . . . Potential Cave-ins . | . . . . . . . . . Cave-ins Triggered . | . . . . . . . . . Exploration Rate (%) 48 | 3 23 35 93 96 43 29 95 16 Regions Visited 8 Branch Regions 5 Pre-discovered Areas 1 | . . 1 . . . . . . Known Exits Taken 1 | . . . . . 1 . . . Unknown Exits Taken 7 | 1 1 1 1 1 . 1 1 . Scrap Searched 5 | . . . . 1 . . 4 . Spaces Dug 8 | . . . . . 8 . . . Terrain Destroyed 25 | . . . . . 14 11 . . Melee . | . . . . . . . . . Projectile 8 | . . . . . 8 . . . AOE 17 | . . . . . 6 11 . . Terrain Rammed . | . . . . . . . . . Walls Destroyed . | . . . . . . . . . Machines Disabled . | . . . . . . . . . Actions | -11 -10 -10 -10 -9 -8 -7 -7 -7 --------- Run | Yrd Mat Min Exi Min Mat Fac Low Low Total 2357 | 97 90 84 514 122 297 266 808 79 Wait 94 | 3 5 . 1 8 68 4 5 . Move 2128 | 67 84 82 508 114 169 240 785 79 Hop . | . . . . . . . . . Pick Up 19 | 7 1 . . . 6 2 3 . Fast Attach 14 | 4 . . 2 . 4 3 1 . Attach 7 | 3 . . . . 1 1 2 . Detach . | . . . . . . . . . Swap 19 | . . . . . 16 2 1 . Drop 15 | . . . 2 . 9 1 3 . Fire 59 | 13 . 2 . . 23 13 8 . Melee . | . . . . . . . . . Ram . | . . . . . . . . . Kick 1 | . . . . . 1 . . . Crush . | . . . . . . . . . Escape Stasis . | . . . . . . . . . Rewire 1 | . . . 1 . . . . . Trap . | . . . . . . . . . Miscellaneous . | . . . . . . . . . Route ------- -11/Scrapyard -10/Materials -10/Mines -10/Exiles (discovered 2 exits: [*Min x2]) -9/Mines (discovered 2 exits: *Mat x2) -8/Materials -7/Factory -7/Lower Caves -7/Lower Caves History --------- Turn | Location | Event 15 | -11/Scrapyard | Discovered new exit (range 14) 133 | -11/Scrapyard | Entered Materials 190 | -10/Materials | Discovered new exit (range 13) 221 | -10/Materials | Met 8R-AWN 240 | -10/Materials | Entered Mines 243 | -10/Mines | Followed 8R-AWN into the Mines 305 | -10/Mines | Build established: Mutant 317 | -10/Mines | Received a Rocket Launcher from a helpful Derelict 326 | -10/Mines | Met a Derelict bent on vengeance 339 | -10/Mines | Discovered new exit (range 5) 345 | -10/Mines | Entered Exiles 367 | -10/Exiles | Discovered new exit (range 14) 405 | -10/Exiles | Welcomed by 8R-AWN 428 | -10/Exiles | Met EX-HEX 504 | -10/Exiles | Met EX-DEC 560 | -10/Exiles | Visited The Gauntlet 734 | -10/Exiles | Met EX-BIN 764 | -10/Exiles | Aligned with FarCom system 765 | -10/Exiles | Given EX-Vault access code 825 | -10/Exiles | Opened EX-Vault 833 | -10/Exiles | Found Cloak of Protection 848 | -10/Exiles | Found Supersonic Drone Bay 854 | -10/Exiles | Discovered new exit (range 56) 875 | -10/Exiles | Warned to stay clear of 0b10 Research branches 961 | -10/Exiles | Left Exiles lab with Supersonic Drone Bay 961 | -10/Exiles | Entered Mines 967 | -9/Mines | Discovered new exit (range 58) 971 | -9/Mines | Discovered new exit (range 55) 1106 | -9/Mines | Entered Materials 1106 | -8/Materials | Evolved 4 slots: Utility x4 1107 | -8/Materials | Identified exit to Factory 1482 | -8/Materials | Entered Factory 1482 | -7/Factory | Evolved 2 slots: Utility x2 1497 | -7/Factory | Discovered new exit (range 135) 1614 | -7/Factory | Garrison activated, responded to threat 1820 | -7/Factory | Entered Lower Caves 1846 | -7/Lower Caves | Learned Factory emergency access door positions 2001 | -7/Lower Caves | Encountered a Warlord checkpoint 2516 | -7/Lower Caves | Spotted B-75 Beast 2682 | -7/Lower Caves | Lost 3 parts (3u) 2816 | -7/Lower Caves | Discovered new exit (range 10) 2838 | -7/Lower Caves | Entered another Lower Caves area 2937 | -7/Lower Caves | Self-destructed Last Messages --------------- 02574_ Imp. Medium Armor Plating destroyed. 02651_ Imp. Light Armor Plating destroyed. 02651_ Imp. Utility Shielding destroyed. 02651_ Imp. Heat Sink destroyed. 02812_ Searching scrap... 02812_ Found Powered Hammer. 02812_ Found Arm. Huge Wheel. 02812_ Found Riot Gun. 02812_ Found Hrd. Light Armor Plating. 02812_ Found 61 Matter. 02815_ Acquired Riot Gun. 02816_ EXIT=FOUND 02817_ Dropped Med. Treads. 02819_ Dropped Imp. Spread Laser. 02820_ Acquired Arm. Huge Wheel. 02822_ Acquired 10 matter. 02824_ Acquired Hrd. Light Armor Plating. 02826_ Acquired 10 matter. LOCATION=UNKNOWN GOAL=ESCAPE Map ----- +----------------------------------------------------+ | # ## ##???? #??????????????? | | ## ## ######## #### #???????????????? | | ?## ### #?????## #?????????????????? | | ??###?# #?????# ##?????????????????? | | ??????# #?????# ## #??????????????????? | | ??????# #?????# ### #??????????????????? | | ??????# #?????# #### ???????????????? | | ??????# #?????# ### ????????????? | | ??????# ######## ## ????????????? | | ??????# ## ???????????? | | ??????# ###### ???????????? | | ??????########### ##?# ????????????? | | ??????????????### ##? ????????????? | | ?????????????## #?? #?????????????? | | ?????????????# ##???####?????????????? | | ?????????????# ## #?????????????????????? | | ?????????????# #?##### #?????????????????????? | | ?????????????###?????## ##??##?????#???????????? | | ????????????????????## ##?? ##### #???????????? | | ???????????????????## ##??# #???????????? | | ???????????????????# #??# ##??????????? | | ???????????????????## ### ##?????????? | | ????????????????????## #?????????? | | ?????????????????????# #?????????? | | ?????????????????????## #?????????? | | ??????????????????????## @ #??????????? | | ???????????????????????# ##???????????? | | ?????????????????????? #????????????? | | ????????????????????? ### ??????????? | | ???????????????????? ##??? ?????????? | | ?????????????????? #?????# ??????????? | | ????????????????? l g #### #????????????????????? | | ???????????????? g#???? ????????????????????? | | ???????????????## #????? ????????????????????? | | ????????????????## ?????? #???????????????????? | | ?????????????????# ???????# ???????????????????? | | ?????????????????#????????? ???????????????????? | | ???????????????????????????## ??????????????????? | | ?????????????????????????????# ??????????????????? | | ?????????????????????????????????????????????????? | | ?????????????????????????????????????????????????? | | ?????????????????????????????????????????????????? | | ?????????????????????????????????????????????????? | | ?????????????????????????????????????????????????? | | ?????????????????????????????????????????????????? | | ?????????????????????????????????????????????????? | | ?????????????????????????????????????????????????? | | ?????????????????????????????????????????????????? | | ?????????????????????????????????????????????????? | | ?????????????????????????????????????????????????? | +----------------------------------------------------+ Best States ------------- Heat Dissipation 62 Energy Generation 16 Energy Capacity 290 Matter Stores 300 Matter Capacity 300 Sight Range 16 Terrain Scan Density 10 Jamming Range 12 Cloak Strength 5 Armor Coverage 450 Propulsion Shielding 66 Utility Shielding 66 Evasion (%) 55 Targeting Accuracy 8 Item Schematics ----------------- None Robot Schematics ------------------ None Fabricated ------------ Nothing Repaired ---------- Nothing Alien Tech Used ----------------- None Achievements -------------- None Challenges ------------ None Game ------ Seed HoverPulseDoomcannon Manual? 0 Play Time 01:00:55 Cumulative 232.4 hours Start 2025.08.18 @ 20:54:06 End 2025.08.22 @ 22:48:57 Sessions 3 Manual Loads 0 Difficulty Rogue Special Mode None Game No. 410 Rogue 410 Adventurer 0 Explorer 0 Win Type - Total 1 Types 1/0/0/0/0/0/0/0/0/0 Lore% 30 Gallery% 47 Achievement% 39 Wizard Run 0 Options --------- Layout 1 ASCII 0 Keyboard 1 Movement Vi Keybinds 0 Fullscreen 0 Font 20/Smallcaps Map View 59x39 Zoom Use 0% Tactical HUD 1 Map Filters NONE Filters NONE Steam 1 RUN: b1695518-dffa-4417-bffc-cc1dd4c40ce2